fUSD/lending_fUSD_20240815
["ID","MTS","AMOUNT","RATE_DAILY","PERIOD"]
[334977232,1723708231787,-141939.233357,0.0002388,2]
[334977233,1723708231798,-924.56983723,0.0002388,2]
[334977234,1723708231811,-660.81574573,0.0002388,2]
[334977236,1723708231822,-465.81894967,0.0002388,2]
[334977238,1723708231834,-442.78390852,0.0002388,2]
[334977240,1723708231845,-289.25,0.0002388,2]
[334977242,1723708231855,-1918.55834512,0.0002388,2]
[334977243,1723708231866,-348.26422483,0.0002388,2]
[334977244,1723708231877,-13972.11072017,0.0002388,2]
[334977245,1723708231887,-2200.00000003,0.0002388,2]
[334977246,1723708231899,-606.15,0.0002388,2]
[334977257,1723708237553,-1839.93992941,0.0002388,2]
[334977259,1723708237564,-6957.69029701,0.0002388,2]
[334977260,1723708237575,-1031.62916667,0.0002398,2]
[334977261,1723708237583,-1076.3378488,0.0002398,2]
[334977262,1723708237592,-1000.0,0.00024,20]
[334977263,1723708237602,-182.51,0.00024019,2]
[334977264,1723708237612,-330.477,0.00024044,2]
[334977265,1723708237621,-594.407,0.00024044,2]
[334977266,1723708237630,-13330.613,0.00024044,2]
[334977267,1723708237639,-190.924,0.00024044,2]
[334977268,1723708237648,-151.477,0.00024044,2]
[334977269,1723708237657,-187.154,0.00024044,2]
[334977270,1723708237666,-261.361,0.00024044,2]
[334977271,1723708237675,-796.56499259,0.00024084,2]
[334977272,1723708237684,-362.34549818,0.0002413,2]
[334977273,1723708237693,-2025.49404849,0.00024201,2]
[334977274,1723708237703,-794.0,0.00024209,2]
[334977275,1723708237714,-1551.47114,0.0002422,2]
[334977276,1723708237724,-500.0,0.00024229,2]
[334977277,1723708237734,-47629.04400834,0.0002423,2]
[334977278,1723708237746,-5804.96287726,0.0002423,2]
[334977279,1723708237757,-526.17759152,0.0002423,2]
[334977280,1723708237768,-264.85269922,0.0002423,2]
[334977281,1723708237780,-445.42957939,0.0002423,2]
[334977282,1723708237791,-3891.72240389,0.0002423,2]
[334977283,1723708237803,-1089.05208853,0.0002423,2]
[334977284,1723708237815,-1028.52477935,0.0002423,2]
[334977285,1723708237827,-666.77284336,0.0002423,2]
[334977286,1723708237838,-11554.30971465,0.0002423,2]
[334977287,1723708237859,-128981.61031748,0.0002423,2]
[334977288,1723708237870,-3142.854,0.0002423,2]
[334977289,1723708237881,-388.08478933,0.00024282,2]
[334977290,1723708237890,-420.36124782,0.00024316,2]
[334977291,1723708237900,-11817.6928,0.00024345,2]
[334977292,1723708237910,-152.32,0.00024352,2]
[334977293,1723708237919,-21059.3768197,0.00024362,4]
[334977294,1723708237929,-150.78,0.00024369,2]
[334977295,1723708237938,-7019.79227324,0.0002437,4]
[334977296,1723708237948,-71554.6294,0.00024372,2]
[334977297,1723708237959,-7019.79227324,0.00024373,4]
[334977298,1723708237971,-500.0,0.00024383,7]
[334977299,1723708237981,-500.0,0.00024383,7]
[334977300,1723708237990,-500.0,0.00024383,7]
[334977301,1723708238000,-500.0,0.00024383,7]
[334977302,1723708238009,-500.0,0.00024383,7]
[334977303,1723708238019,-500.0,0.00024383,7]
[334977304,1723708238029,-500.0,0.00024383,7]
[334977305,1723708238040,-500.0,0.00024383,7]
[334977307,1723708238049,-500.0,0.00024383,7]
[334977309,1723708238058,-3140.34,0.00024383,7]
[334977311,1723708238068,-500.0,0.00024383,7]
[334977313,1723708238077,-500.0,0.00024383,7]
[334977315,1723708238087,-1575.52,0.00024383,7]
[334977317,1723708238096,-500.0,0.00024383,7]
[334977319,1723708238105,-500.0,0.00024383,7]
[334977321,1723708238114,-160.4213192,0.00024383,7]
[334977323,1723708238123,-500.0,0.00024383,7]
[334977325,1723708238132,-500.0,0.00024383,7]
[334977326,1723708238142,-874.6,0.00024383,7]
[334977327,1723708238151,-874.6,0.00024383,7]
[334977328,1723708238162,-798.79,0.00024383,7]
[334977329,1723708238171,-500.0,0.00024383,7]
[334977330,1723708238181,-500.0,0.00024383,7]
[334977331,1723708238342,-528.35151464,0.00024383,7]
[334977332,1723708238353,-500.0,0.00024383,7]
[334977333,1723708238363,-500.0,0.00024383,7]
[334977334,1723708238374,-500.0,0.00024383,7]
[334977335,1723708238384,-500.0,0.00024383,7]
[334977336,1723708238393,-500.0,0.00024383,7]
[334977337,1723708238403,-500.0,0.00024383,7]
[334977338,1723708238412,-500.0,0.00024383,7]
[334977339,1723708238421,-1181.2,0.00024383,2]
[334977340,1723708238431,-1181.2,0.00024383,2]
[334977341,1723708238440,-300.0,0.00024383,5]
[334977342,1723708238451,-151.35904873,0.00024399,2]
[334977343,1723708238462,-495.0,0.000244,7]
[334977344,1723708238471,-991.0,0.000244,7]
[334977345,1723708238481,-262.5942,0.000244,2]
[334977346,1723708238491,-425.531138,0.000244,2]
[334977347,1723708238500,-500.0,0.00024444,7]
[334977348,1723708238510,-500.0,0.00024444,7]
[334977349,1723708238519,-500.0,0.00024444,7]
[334977350,1723708238528,-151.081514,0.00024448,12]
[334977351,1723708238541,-167.081514,0.00024448,13]
[334977352,1723708238551,-167.081514,0.00024448,11]
[334977353,1723708238561,-500.0,0.00024449,7]
[334977354,1723708238570,-7019.79227324,0.00024449,4]
[334977355,1723708238582,-7019.79227324,0.0002445,4]
[334977356,1723708238591,-21059.3768197,0.0002445,4]
[334977357,1723708238601,-7019.79227324,0.00024451,4]
[334977358,1723708238610,-14039.5845465,0.00024452,4]
[334977359,1723708238623,-7019.79227324,0.00024453,4]
[334977360,1723708238632,-1267.00797711,0.00024456,2]
[334977361,1723708238642,-7019.79227324,0.00024458,4]
[334977362,1723708238652,-152.32,0.00024458,2]
[334977363,1723708238662,-500.0,0.00024459,7]
[334977364,1723708238672,-1181.2,0.00024459,2]
[334977365,1723708238682,-165.234804,0.00024459,7]
[334977366,1723708238692,-7019.79227324,0.00024459,4]
[334977367,1723708238702,-7019.79227324,0.0002446,4]
[334977368,1723708238712,-500.0,0.0002446,7]
[334977369,1723708238722,-500.0,0.0002446,7]
[334977370,1723708238732,-500.0,0.0002446,7]
[334977371,1723708238741,-542.11940176,0.0002446,7]
[334977372,1723708238751,-500.0,0.0002446,7]
[334977373,1723708238761,-500.0,0.0002446,7]
[334977374,1723708238770,-648.36208866,0.0002446,7]
[334977375,1723708238779,-3140.34,0.0002446,7]
[334977376,1723708238789,-500.0,0.0002446,7]
[334977377,1723708238799,-500.0,0.0002446,7]
[334977378,1723708238809,-1575.52,0.0002446,7]
[334977379,1723708238819,-500.0,0.0002446,7]
[334977380,1723708238828,-874.6,0.0002446,7]
[334977381,1723708238838,-798.79,0.0002446,7]
[334977382,1723708238848,-500.0,0.0002446,7]
[334977383,1723708238857,-252.9665,0.0002446,7]
[334977384,1723708238867,-500.0,0.0002446,7]
[334977385,1723708238876,-500.0,0.0002446,7]
[334977386,1723708238885,-500.0,0.0002446,7]
[334977387,1723708238894,-49138.5459127,0.0002446,4]
[334977388,1723708238903,-151.0,0.00024461,7]
[334977389,1723708238913,-17813.2851895,0.00024462,2]
[334977390,1723708238923,-2822.5928966,0.00024462,2]
[334977391,1723708238932,-2918.0305838,0.00024462,2]
[334977392,1723708238942,-7019.79227324,0.00024462,4]
[334977393,1723708238951,-14039.5845465,0.00024463,4]
[334977394,1723708238960,-7019.79227324,0.00024468,4]
[334977395,1723708238969,-14039.5845465,0.00024469,4]
[334977396,1723708238979,-2000.0,0.00024469,2]
[334977397,1723708238989,-500.0,0.00024469,7]
[334977398,1723708238998,-317.20696146,0.00024469,7]
[334977399,1723708239008,-500.0,0.00024469,7]
[334977400,1723708239018,-651.86325628,0.00024469,4]
[334977401,1723708239028,-187.60438315,0.00024469,4]
[334977402,1723708239037,-243.49470266,0.00024469,2]
[334977403,1723708239046,-203.52053776,0.00024469,4]
[334977404,1723708239056,-500.0,0.00024469,7]
[334977405,1723708239066,-150.0,0.00024469,2]
[334977406,1723708239075,-252.95873369,0.00024469,2]
[334977407,1723708239085,-150.0,0.00024469,2]
[334977408,1723708239094,-500.0,0.00024469,7]
[334977409,1723708239104,-500.0,0.00024469,7]
[334977410,1723708239113,-150.0,0.00024469,2]
[334977411,1723708239123,-150.0,0.00024469,2]
[334977412,1723708239132,-500.0,0.00024469,7]
[334977413,1723708239142,-874.6,0.00024469,7]
[334977414,1723708239151,-500.0,0.00024469,7]
[334977415,1723708239160,-7019.79227324,0.00024469,4]
[334977416,1723708239170,-32556.3,0.0002447,5]
[334977417,1723708239180,-50000.0,0.0002447,2]
[334977418,1723708239189,-151.0,0.0002447,7]
[334977419,1723708239198,-21059.3768197,0.0002447,4]
[334977420,1723708239208,-151.0,0.0002447,7]
[334977421,1723708239217,-546.22321879,0.00024471,7]
[334977422,1723708239227,-1181.2,0.00024471,2]
[334977423,1723708239236,-192.35595443,0.00024472,7]
[334977424,1723708239245,-500.0,0.00024472,7]
[334977425,1723708239255,-500.0,0.00024472,7]
[334977426,1723708239264,-545.0,0.00024473,2]
[334977427,1723708239274,-151.0,0.00024473,7]
[334977429,1723708239284,-500.0,0.00024478,7]
[334977430,1723708239294,-500.0,0.00024478,7]
[334977431,1723708239303,-500.0,0.00024478,7]
[334977432,1723708239313,-3140.34,0.00024478,7]
[334977433,1723708239322,-1575.52,0.00024478,7]
[334977434,1723708239332,-500.0,0.00024478,7]
[334977435,1723708239341,-798.79,0.00024478,7]
[334977436,1723708239351,-500.0,0.00024478,7]
[334977437,1723708239360,-500.0,0.00024478,7]
[334977438,1723708239369,-500.0,0.00024478,7]
[334977439,1723708239379,-569.76068093,0.00024479,7]
[334977440,1723708239388,-500.0,0.00024479,7]
[334977441,1723708239398,-500.0,0.00024479,7]
[334977442,1723708239408,-500.0,0.00024479,7]
[334977443,1723708239417,-500.0,0.00024479,7]
[334977444,1723708239427,-60000.0,0.0002448,4]
[334977445,1723708239437,-151.404125,0.0002448,7]
[334977446,1723708239447,-246.978714,0.0002448,7]
[334977447,1723708239457,-500.0,0.00024482,7]
[334977448,1723708239467,-500.0,0.00024482,7]
[334977449,1723708239477,-500.0,0.00024482,7]
[334977450,1723708239486,-14473.1995857,0.00024483,2]
[334977451,1723708239495,-11133.113982,0.00024483,2]
[334977452,1723708239505,-7793.0283782,0.00024483,2]
[334977453,1723708239527,-1812.35117886,0.00024483,2]
[334977454,1723708239543,-2640.59159564,0.00024483,2]
[334977455,1723708239552,-1112.8571707,0.00024483,2]
[334977456,1723708239562,-1908.76024196,0.00024483,2]
[334977457,1723708239575,-384.58149194,0.00024483,2]
[334977458,1723708239584,-21.21235038,0.00024483,2]
[334977459,1723708239595,-1742.87822072,0.00024483,2]
[334977460,1723708239607,-859.20177922,0.00024483,2]
[334977461,1723708239623,-375.63762908,0.00024483,2]
[334977462,1723708239633,-705.5882455,0.00024483,2]
[334977463,1723708239642,-176.3370827,0.00024483,2]
[334977464,1723708239651,-452.07808885,0.00024483,2]
[334977465,1723708239662,-2310.36466215,0.00024483,2]
[334977466,1723708239671,-1707.90654582,0.00024483,2]
[334977467,1723708239687,-482.08291296,0.00024483,2]
[334977468,1723708239701,-374.84641266,0.00024483,2]
[334977469,1723708239713,-42.01904666,0.00024483,2]
[334977470,1723708239722,-889.98095334,0.00024483,2]
[334977471,1723708239773,-151.184,0.00024044,2]
[334977472,1723708239783,-150.0,0.00024044,2]
[334977473,1723708239792,-1561.28613196,0.00024483,2]
[334977474,1723708239802,-2295.6792525,0.00024483,2]
[334977475,1723708239811,-2140.0914196,0.00024483,2]
[334977476,1723708239821,-500.0,0.00024488,7]
[334977477,1723708239830,-874.6,0.00024488,7]
[334977479,1723708239839,-500.0,0.00024488,7]
[334977481,1723708239848,-152.32,0.00024489,2]
[334977483,1723708239857,-500.0,0.00024489,7]
[334977485,1723708239867,-500.0,0.00024489,7]
[334977486,1723708239876,-500.0,0.00024489,7]
[334977488,1723708239886,-3140.34,0.00024489,7]
[334977490,1723708239895,-1575.52,0.00024489,7]
[334977492,1723708239905,-500.0,0.00024489,7]
[334977494,1723708239914,-798.79,0.00024489,7]
[334977496,1723708239924,-500.0,0.00024489,7]
[334977498,1723708239933,-500.0,0.00024489,7]
[334977500,1723708239943,-500.0,0.00024489,7]
[334977502,1723708239952,-152.32,0.0002449,2]
[334977504,1723708239962,-152.32,0.0002449,2]
[334977506,1723708239972,-1697.6782614,0.0002449,7]
[334977508,1723708239982,-152.32,0.0002449,2]
[334977510,1723708239992,-152.32,0.0002449,2]
[334977512,1723708240002,-152.32,0.0002449,2]
[334977514,1723708240012,-152.32,0.0002449,2]
[334977516,1723708240021,-152.32,0.0002449,2]
[334977518,1723708240039,-152.32,0.0002449,2]
[334977520,1723708240055,-152.32,0.0002449,2]
[334977521,1723708240065,-152.32,0.0002449,2]
[334977523,1723708240075,-152.32,0.0002449,2]
[334977525,1723708240085,-152.32,0.0002449,2]
[334977527,1723708240094,-152.32,0.0002449,2]
[334977529,1723708240104,-152.32,0.0002449,2]
[334977531,1723708240114,-152.32,0.0002449,2]
[334977533,1723708240124,-152.32,0.0002449,2]
[334977535,1723708240133,-152.32,0.0002449,2]
[334977537,1723708240142,-152.32,0.0002449,2]
[334977539,1723708240152,-152.32,0.0002449,2]
[334977541,1723708240161,-152.32,0.0002449,2]
[334977543,1723708240170,-152.32,0.0002449,2]
[334977544,1723708240180,-10136.06381688,0.00024497,2]
[334977547,1723708240191,-500.0,0.00024498,7]
[334977549,1723708240200,-500.0,0.00024498,7]
[334977550,1723708240209,-500.0,0.00024498,7]
[334977552,1723708240219,-500.0,0.00024498,7]
[334977554,1723708240229,-500.0,0.00024498,7]
[334977556,1723708240239,-500.0,0.00024498,7]
[334977558,1723708240249,-352.94647632,0.00024498,7]
[334977560,1723708240260,-500.0,0.00024498,7]
[334977562,1723708240270,-3140.34,0.00024498,7]
[334977564,1723708240279,-500.0,0.00024498,7]
[334977566,1723708240289,-1575.52,0.00024498,7]
[334977567,1723708240298,-500.0,0.00024498,7]
[334977568,1723708240308,-500.0,0.00024498,7]
[334977569,1723708240317,-798.79,0.00024498,7]
[334977570,1723708240326,-500.0,0.00024498,7]
[334977571,1723708240335,-475.84227559,0.00024498,7]
[334977572,1723708240345,-500.0,0.00024498,7]
[334977573,1723708240354,-1181.2,0.00024498,2]
[334977574,1723708240363,-22784.70615552,0.00024499,8]
[334977575,1723708240373,-500.0,0.00024499,7]
[334977576,1723708240382,-500.0,0.00024499,7]
[334977577,1723708240391,-500.0,0.00024499,7]
[334977578,1723708240401,-500.0,0.00024499,7]
[334977579,1723708240411,-500.0,0.00024499,7]
[334977580,1723708240420,-500.0,0.00024499,7]
[334977581,1723708240429,-500.0,0.00024499,7]
[334977582,1723708240439,-500.0,0.00024499,7]
[334977583,1723708240449,-222.85747059,0.00024499,7]
[334977584,1723708240459,-500.0,0.00024499,7]
[334977585,1723708240468,-500.0,0.00024499,7]
[334977586,1723708240477,-487.39099433,0.00024499,7]
[334977587,1723708240487,-500.0,0.00024499,7]
[334977588,1723708240496,-500.0,0.00024499,7]
[334977589,1723708240506,-500.0,0.00024499,7]
[334977590,1723708240515,-500.0,0.00024499,7]
[334977591,1723708240525,-500.0,0.00024499,7]
[334977592,1723708240541,-500.0,0.00024499,7]
[334977593,1723708240551,-500.0,0.00024499,7]
[334977594,1723708240560,-500.0,0.00024499,7]
[334977595,1723708240569,-500.0,0.00024499,7]
[334977596,1723708240582,-500.0,0.00024499,7]
[334977597,1723708240591,-500.0,0.00024499,7]
[334977598,1723708240601,-500.0,0.00024499,7]
[334977599,1723708240611,-500.0,0.00024499,7]
[334977600,1723708240621,-500.0,0.00024499,7]
[334977601,1723708240631,-500.0,0.00024499,7]
[334977602,1723708240640,-500.0,0.00024499,7]
[334977603,1723708240649,-498.12922683,0.00024499,7]
[334977604,1723708240658,-500.0,0.00024499,7]
[334977605,1723708240667,-500.0,0.00024499,7]
[334977606,1723708240677,-644.14,0.00024499,7]
[334977607,1723708240687,-500.0,0.00024499,7]
[334977608,1723708240696,-500.0,0.00024499,7]
[334977609,1723708240705,-500.0,0.00024499,7]
[334977610,1723708240715,-500.0,0.00024499,7]
[334977611,1723708240724,-500.0,0.00024499,7]
[334977612,1723708240733,-500.0,0.00024499,7]
[334977613,1723708240743,-500.0,0.00024499,7]
[334977614,1723708240753,-500.0,0.00024499,7]
[334977615,1723708240762,-500.0,0.00024499,7]
[334977616,1723708240772,-500.0,0.00024499,7]
[334977617,1723708240787,-500.0,0.00024499,7]
[334977618,1723708240795,-500.0,0.00024499,7]
[334977619,1723708240805,-500.0,0.00024499,7]
[334977620,1723708240814,-500.0,0.00024499,7]
[334977621,1723708240825,-500.0,0.00024499,7]
[334977622,1723708240834,-500.0,0.00024499,7]
[334977623,1723708240844,-422.75007893,0.00024499,7]
[334977624,1723708240853,-500.0,0.00024499,7]
[334977625,1723708240863,-500.0,0.00024499,7]
[334977626,1723708240872,-500.0,0.00024499,7]
[334977627,1723708240882,-500.0,0.00024499,7]
[334977628,1723708240892,-500.0,0.00024499,7]
[334977629,1723708240901,-500.0,0.00024499,7]
[334977630,1723708240910,-500.0,0.00024499,7]
[334977631,1723708240920,-500.0,0.00024499,7]
[334977632,1723708240929,-500.0,0.00024499,7]
[334977633,1723708240939,-643.44777574,0.00024499,7]
[334977634,1723708240949,-500.0,0.00024499,7]
[334977635,1723708240959,-169.07438256,0.00024499,7]
[334977636,1723708240969,-3140.34,0.00024499,7]
[334977637,1723708240977,-3140.34,0.00024499,7]
[334977638,1723708240988,-3140.34,0.00024499,7]
[334977639,1723708240997,-3140.34,0.00024499,7]
[334977640,1723708241007,-3140.34,0.00024499,7]
[334977641,1723708241016,-3140.34,0.00024499,7]
[334977642,1723708241026,-3140.34,0.00024499,7]
[334977643,1723708241039,-3140.34,0.00024499,7]
[334977644,1723708241049,-3140.34,0.00024499,7]
[334977645,1723708241058,-3140.34,0.00024499,7]
[334977646,1723708241068,-3140.34,0.00024499,7]
[334977647,1723708241077,-3140.34,0.00024499,7]
[334977648,1723708241086,-3140.34,0.00024499,7]
[334977649,1723708241096,-3140.34,0.00024499,7]
[334977650,1723708241106,-3140.34,0.00024499,7]
[334977651,1723708241115,-3140.34,0.00024499,7]
[334977652,1723708241125,-3140.34,0.00024499,7]
[334977653,1723708241137,-3140.34,0.00024499,7]
[334977654,1723708241147,-3140.34,0.00024499,7]
[334977655,1723708241156,-500.0,0.00024499,7]
[334977656,1723708241166,-500.0,0.00024499,7]
[334977657,1723708241175,-500.0,0.00024499,7]
[334977658,1723708241185,-500.0,0.00024499,7]
[334977659,1723708241195,-389.11367866,0.00024499,7]
[334977660,1723708241204,-619.18105113,0.00024499,7]
[334977661,1723708241213,-1575.52,0.00024499,7]
[334977662,1723708241223,-1575.52,0.00024499,7]
[334977663,1723708241233,-1575.52,0.00024499,7]
[334977664,1723708241243,-1575.52,0.00024499,7]
[334977665,1723708241254,-1575.52,0.00024499,7]
[334977666,1723708241265,-1575.52,0.00024499,7]
[334977667,1723708241275,-1575.52,0.00024499,7]
[334977668,1723708241285,-1575.52,0.00024499,7]
[334977669,1723708241294,-1575.52,0.00024499,7]
[334977670,1723708241303,-1575.52,0.00024499,7]
[334977671,1723708241312,-1575.52,0.00024499,7]
[334977672,1723708241322,-1575.52,0.00024499,7]
[334977673,1723708241331,-1575.52,0.00024499,7]
[334977674,1723708241341,-1575.52,0.00024499,7]
[334977675,1723708241351,-1575.52,0.00024499,7]
[334977676,1723708241361,-210.94045466,0.00024499,7]
[334977677,1723708241375,-1364.57954534,0.00024499,7]
[334977678,1723708241385,-1575.52,0.00024499,7]
[334977679,1723708241393,-1575.52,0.00024499,7]
[334977680,1723708241403,-1575.53116114,0.00024499,7]
[334977681,1723708241412,-500.0,0.00024499,7]
[334977682,1723708241421,-485.1788173,0.00024499,7]
[334977683,1723708241432,-500.0,0.00024499,7]
[334977684,1723708241443,-500.0,0.00024499,7]
[334977685,1723708241454,-500.0,0.00024499,7]
[334977686,1723708241465,-500.0,0.00024499,7]
[334977687,1723708241475,-500.0,0.00024499,7]
[334977688,1723708241485,-500.0,0.00024499,7]
[334977689,1723708241495,-500.0,0.00024499,7]
[334977690,1723708241504,-500.0,0.00024499,7]
[334977691,1723708241516,-500.0,0.00024499,7]
[334977692,1723708241526,-377.99038065,0.00024499,7]
[334977693,1723708241541,-874.6,0.00024499,7]
[334977694,1723708241550,-874.6,0.00024499,7]
[334977695,1723708241560,-874.6,0.00024499,7]
[334977696,1723708241570,-874.6,0.00024499,7]
[334977697,1723708241580,-874.6,0.00024499,7]
[334977698,1723708241590,-874.6,0.00024499,7]
[334977699,1723708241599,-874.6,0.00024499,7]
[334977700,1723708241610,-874.6,0.00024499,7]
[334977701,1723708241620,-874.6,0.00024499,7]
[334977702,1723708241629,-798.79,0.00024499,7]
[334977703,1723708241638,-874.6,0.00024499,7]
[334977704,1723708241648,-798.79,0.00024499,7]
[334977705,1723708241657,-874.6,0.00024499,7]
[334977706,1723708241666,-798.79,0.00024499,7]
[334977707,1723708241675,-874.6,0.00024499,7]
[334977708,1723708241684,-798.79,0.00024499,7]
[334977709,1723708241694,-874.6,0.00024499,7]
[334977710,1723708241703,-798.79,0.00024499,7]
[334977711,1723708241713,-874.6,0.00024499,7]
[334977712,1723708241722,-874.6,0.00024499,7]
[334977713,1723708241731,-798.79,0.00024499,7]
[334977714,1723708241739,-874.6,0.00024499,7]
[334977715,1723708241748,-798.79,0.00024499,7]
[334977716,1723708241758,-874.6,0.00024499,7]
[334977717,1723708241767,-798.79,0.00024499,7]
[334977718,1723708241776,-874.6,0.00024499,7]
[334977719,1723708241788,-874.6228763,0.00024499,7]
[334977720,1723708241798,-798.79,0.00024499,7]
[334977721,1723708241807,-798.79,0.00024499,7]
[334977722,1723708241933,-798.79,0.00024499,7]
[334977723,1723708241945,-798.79,0.00024499,7]
[334977724,1723708241954,-798.79,0.00024499,7]
[334977725,1723708241965,-798.79,0.00024499,7]
[334977726,1723708241976,-798.79,0.00024499,7]
[334977727,1723708241985,-798.79,0.00024499,7]
[334977728,1723708241994,-798.79,0.00024499,7]
[334977729,1723708242003,-798.79,0.00024499,7]
[334977730,1723708242012,-798.9297243,0.00024499,7]
[334977731,1723708242022,-500.0,0.00024499,7]
[334977732,1723708242032,-500.0,0.00024499,7]
[334977733,1723708242042,-500.0,0.00024499,7]
[334977734,1723708242052,-284.47391474,0.00024499,7]
[334977735,1723708242062,-500.0,0.00024499,7]
[334977736,1723708242073,-500.0,0.00024499,7]
[334977737,1723708242083,-616.07718958,0.00024499,7]
[334977738,1723708242094,-425.31144758,0.00024499,7]
[334977739,1723708242104,-1181.2,0.00024499,2]
[334977740,1723708242112,-1181.2,0.00024499,2]
[334977741,1723708242121,-1181.2,0.00024499,2]
[334977742,1723708242131,-1181.2,0.00024499,2]
[334977743,1723708242139,-1181.2,0.00024499,2]
[334977744,1723708242149,-1181.2,0.00024499,2]
[334977745,1723708242158,-1181.2,0.00024499,2]
[334977746,1723708242167,-558.1274007,0.00024499,2]
[334977747,1723708242179,-623.0725993,0.00024499,2]
[334977748,1723708242188,-1181.2,0.00024499,2]
[334977750,1723708242197,-1181.2,0.00024499,2]
[334977751,1723708242206,-1181.2,0.00024499,2]
[334977753,1723708242215,-1181.2,0.00024499,2]
[334977755,1723708242224,-1181.2,0.00024499,2]
[334977757,1723708242233,-1181.2,0.00024499,2]
[334977759,1723708242243,-1181.2,0.00024499,2]
[334977761,1723708242252,-1181.2,0.00024499,2]
[334977763,1723708242260,-1181.2,0.00024499,2]
[334977764,1723708242270,-1181.2,0.00024499,2]
[334977765,1723708242280,-1181.29279446,0.00024499,2]
[334977766,1723708242289,-14736.61348044,0.000245,11]
[334977770,1723708243342,-635.20510333,0.000245,11]
[334977771,1723708243356,-688.15196471,0.000245,11]
[334977773,1723708243368,-10400.0,0.000245,11]
[334977776,1723708243379,-857.69234347,0.000245,11]
[334977778,1723708243390,-3403.92436493,0.000245,11]
[334977780,1723708243401,-573.37954002,0.000245,11]
[334977782,1723708243450,-469.092,0.000245,11]
[334977783,1723708243461,-312.60966571,0.000245,11]
[334977784,1723708243479,-347.3176224,0.000245,11]
[334977785,1723708243490,-581.5947895,0.000245,11]
[334977786,1723708243559,-462.00385733,0.00024383,7]
[334977787,1723708243570,-37.99614267,0.00024383,7]
[334977788,1723708243582,-500.0,0.00024383,7]
[334977789,1723708243591,-500.0,0.00024459,7]
[334977790,1723708243600,-42.28819801,0.0002447,7]
[334977791,1723708243704,-457.71180199,0.0002447,7]
[334977792,1723708243714,-500.0,0.00024498,7]
[334977793,1723708243723,-500.0,0.00024499,7]
[334977794,1723708243733,-2758.5305553,0.000245,11]
[334977795,1723708243744,-5799.23736681,0.000245,11]
[334977817,1723708245569,-500.0,0.00024499,7]
[334977818,1723708245580,-500.0,0.00024499,7]
[334977819,1723708245589,-378.3,0.00024499,7]
[334977820,1723708245598,-135047.45706319,0.000245,11]
[334977821,1723708245783,-285.49170606,0.000245,11]
[334977822,1723708245796,-5216.25503422,0.000245,11]
[334977859,1723709336643,5000.0,0.00012613,2]
[334977885,1723709431638,-155.0,0.00013052,2]
[334977887,1723709431647,-328.27252306,0.00013698,2]
[334977889,1723709431656,-179.73,0.00013699,2]
[334977891,1723709431665,-159.47,0.00013973,2]
[334977893,1723709431675,-493.63885733,0.00014398,2]
[334977894,1723709431685,-155.17072618,0.00014398,2]
[334977895,1723709431694,-524.99967728,0.00014398,2]
[334977896,1723709431703,-166.39780491,0.00014509,2]
[334977897,1723709431712,-794.0,0.00017214,2]
[334977898,1723709431722,-300.0,0.00017533,2]
[334977899,1723709431731,-7605.52,0.00019726,2]
[334977900,1723709431741,-152.22,0.00020499,2]
[334977901,1723709431751,-150.0,0.00021285,2]
[334977902,1723709431760,-5159.03,0.00021286,2]